[Event "*** Titled Tuesday Blitz"]
[Site "Chess.com"]
[Date "2019.01.01"]
[Round "3"]
[White "Atanejhad"]
[Black "Lion_DL"]
[Result "1-0"]
[WhiteElo "2256"]
[BlackElo "2396"]
[TimeControl "180+2"]
[EndTime "13:36:27 PST"]
[Termination "Atanejhad won by checkmate"]

1. Nf3 {[%clk 0:03:01.9]} 1... Nf6 {[%clk 0:03:00.4]} 2. d4 {[%clk 0:03:03]}
2... e6 {[%clk 0:03:00.7]} 3. c4 {[%clk 0:03:01.1]} 3... b6 {[%clk 0:03:01.3]}
4. g3 {[%clk 0:03:01.5]} 4... Bb7 {[%clk 0:03:01.3]} 5. Bg2 {[%clk 0:03:02.4]}
5... Be7 {[%clk 0:02:59]} 6. O-O {[%clk 0:03:03.5]} 6... O-O {[%clk 0:03:00.5]}
7. d5 {[%clk 0:03:04.8]} 7... exd5 {[%clk 0:02:59.8]} 8. Nh4 {[%clk 0:03:06.3]}
8... c6 {[%clk 0:02:38.3]} 9. cxd5 {[%clk 0:03:06.6]} 9... Nxd5 {[%clk
0:02:32.9]} 10. Nf5 {[%clk 0:03:07.9]} 10... Nc7 {[%clk 0:02:22.6]} 11. e4
{[%clk 0:03:06.7]} 11... d5 {[%clk 0:02:23.9]} 12. Nc3 {[%clk 0:03:07.8]} 12...
Nba6 {[%clk 0:02:19.5]} 13. Qg4 {[%clk 0:03:06.2]} 13... Bf6 {[%clk 0:02:08.6]}
14. Bf4 {[%clk 0:02:52.8]} 14... Bc8 {[%clk 0:01:55.7]} 15. e5 {[%clk
0:01:53.6]} 15... Bxf5 {[%clk 0:01:55.9]} 16. Qxf5 {[%clk 0:01:55.5]} 16... Be7
{[%clk 0:01:56.3]} 17. Rfd1 {[%clk 0:01:50.6]} 17... Nc5 {[%clk 0:01:53.7]} 18.
Ne2 {[%clk 0:01:46.7]} 18... N5e6 {[%clk 0:01:43.7]} 19. Rac1 {[%clk 0:01:44.4]}
19... Qe8 {[%clk 0:01:35]} 20. Qc2 {[%clk 0:01:38.4]} 20... Nxf4 {[%clk
0:01:16.9]} 21. Nxf4 {[%clk 0:01:32.8]} 21... Bc5 {[%clk 0:01:18.3]} 22. Nd3
{[%clk 0:01:29.8]} 22... Ne6 {[%clk 0:01:10.2]} 23. b4 {[%clk 0:01:30.1]} 23...
Be7 {[%clk 0:00:52.2]} 24. Qxc6 {[%clk 0:01:31.1]} 24... Qxc6 {[%clk 0:00:47.7]}
25. Rxc6 {[%clk 0:01:31.4]} 25... Rfd8 {[%clk 0:00:49.1]} 26. Nf4 {[%clk
0:01:17.2]} 26... Nxf4 {[%clk 0:00:42.3]} 27. gxf4 {[%clk 0:01:19.1]} 27... Bxb4
{[%clk 0:00:43.8]} 28. Bxd5 {[%clk 0:01:12.1]} 28... Rac8 {[%clk 0:00:43.9]} 29.
Rxc8 {[%clk 0:01:10.5]} 29... Rxc8 {[%clk 0:00:44.5]} 30. Bb3 {[%clk 0:01:12]}
30... Rc7 {[%clk 0:00:35]} 31. Rd8+ {[%clk 0:01:08.2]} 31... Bf8 {[%clk
0:00:36.3]} 32. f5 {[%clk 0:01:09.9]} 32... g6 {[%clk 0:00:33]} 33. f6 {[%clk
0:01:05.9]} 33... Rc6 {[%clk 0:00:21.1]} 34. Rd7 {[%clk 0:00:59.6]} 34... g5
{[%clk 0:00:18]} 35. Rxf7 {[%clk 0:00:53.6]} 35... Rc1+ {[%clk 0:00:16.3]} 36.
Kg2 {[%clk 0:00:49.9]} 36... Rb1 {[%clk 0:00:17.7]} 37. Rg7+ {[%clk 0:00:46.9]}
37... Kh8 {[%clk 0:00:18.3]} 38. Rg8# {[%clk 0:00:48.5]} 1-0

[Event "*** Titled Tuesday Blitz"]
[Site "Chess.com"]
[Date "2019.01.01"]
[Round "3"]
[White "Kacparov"]
[Black "nihalsarin"]
[Result "1-0"]
[WhiteElo "2745"]
[BlackElo "2957"]
[TimeControl "180+2"]
[EndTime "13:36:33 PST"]
[Termination "Kacparov won by resignation"]

1. e4 {[%clk 0:03:01.9]} 1... c5 {[%clk 0:02:58]} 2. Nf3 {[%clk 0:03:00.1]} 2...
e6 {[%clk 0:02:58.6]} 3. d4 {[%clk 0:03:01.4]} 3... cxd4 {[%clk 0:03:00.1]} 4.
Nxd4 {[%clk 0:03:03.3]} 4... Nc6 {[%clk 0:03:01.1]} 5. Nc3 {[%clk 0:03:04.1]}
5... Qc7 {[%clk 0:03:02.7]} 6. Be2 {[%clk 0:03:02.7]} 6... Nf6 {[%clk
0:03:02.5]} 7. O-O {[%clk 0:03:03.1]} 7... Be7 {[%clk 0:03:03.7]} 8. Be3 {[%clk
0:03:04]} 8... O-O {[%clk 0:03:04]} 9. f4 {[%clk 0:03:03.8]} 9... d6 {[%clk
0:03:05.5]} 10. Kh1 {[%clk 0:03:04.1]} 10... Nxd4 {[%clk 0:02:49.1]} 11. Qxd4
{[%clk 0:03:03.9]} 11... e5 {[%clk 0:02:50.3]} 12. Qd3 {[%clk 0:02:53.5]} 12...
a6 {[%clk 0:02:42.9]} 13. a4 {[%clk 0:02:50.6]} 13... b6 {[%clk 0:02:42.8]} 14.
fxe5 {[%clk 0:02:13.7]} 14... dxe5 {[%clk 0:02:44.7]} 15. Rxf6 {[%clk
0:02:14.6]} 15... Bxf6 {[%clk 0:02:46.6]} 16. Nd5 {[%clk 0:02:15.8]} 16... Qc6
{[%clk 0:02:44.7]} 17. Bxb6 {[%clk 0:02:01.1]} 17... a5 {[%clk 0:02:33.4]} 18.
c4 {[%clk 0:01:49.9]} 18... Rb8 {[%clk 0:01:53.1]} 19. c5 {[%clk 0:01:47]} 19...
Qe6 {[%clk 0:01:05.2]} 20. Qf3 {[%clk 0:01:29.9]} 20... Bd8 {[%clk 0:00:56.8]}
21. Bb5 {[%clk 0:01:01.4]} 21... Bb7 {[%clk 0:00:37.2]} 22. Rd1 {[%clk
0:00:55.6]} 22... Bxb6 {[%clk 0:00:29.5]} 23. Nxb6 {[%clk 0:00:56.4]} 23... Rfd8
{[%clk 0:00:28.4]} 24. Nd7 {[%clk 0:00:53.2]} 24... Rbc8 {[%clk 0:00:25.9]} 25.
h3 {[%clk 0:00:48.5]} 25... Bc6 {[%clk 0:00:24]} 26. Rd6 {[%clk 0:00:49.4]}
26... Bxd7 {[%clk 0:00:16.2]} 27. Rxe6 {[%clk 0:00:43.8]} 27... fxe6 {[%clk
0:00:18.1]} 28. Qc3 {[%clk 0:00:43.5]} 28... Kh8 {[%clk 0:00:15.7]} 29. c6
{[%clk 0:00:40.2]} 29... Bxc6 {[%clk 0:00:14.9]} 30. Bxc6 {[%clk 0:00:32.6]}
30... Rd1+ {[%clk 0:00:15.6]} 31. Kh2 {[%clk 0:00:33.4]} 31... Rd6 {[%clk
0:00:17.5]} 32. Qxa5 {[%clk 0:00:30.8]} 32... Rdxc6 {[%clk 0:00:18.9]} 33. Qxe5
{[%clk 0:00:32]} 33... h6 {[%clk 0:00:20.1]} 34. b4 {[%clk 0:00:32.3]} 34... Rd8
{[%clk 0:00:21.5]} 35. b5 {[%clk 0:00:33.3]} 35... Rc2 {[%clk 0:00:23]} 36. Qxe6
{[%clk 0:00:32.2]} 36... Rdd2 {[%clk 0:00:24.5]} 37. Qg6 {[%clk 0:00:32]} 37...
Ra2 {[%clk 0:00:25]} 38. b6 {[%clk 0:00:32]} 38... Rdb2 {[%clk 0:00:26]} 39. e5
{[%clk 0:00:31.2]} 39... Rxa4 {[%clk 0:00:26.9]} 40. Qe8+ {[%clk 0:00:31.9]} 1-0

[Event "*** Titled Tuesday Blitz"]
[Site "Chess.com"]
[Date "2019.01.01"]
[Round "3"]
[White "alpasya2009"]
[Black "wannabe2700"]
[Result "0-1"]
[WhiteElo "2651"]
[BlackElo "2541"]
[TimeControl "180+2"]
[EndTime "13:36:37 PST"]
[Termination "wannabe2700 won by resignation"]

1. d4 {[%clk 0:03:01.9]} 1... Nf6 {[%clk 0:03:00.5]} 2. c4 {[%clk 0:03:02.8]}
2... e6 {[%clk 0:03:01.5]} 3. Nf3 {[%clk 0:03:02.9]} 3... d5 {[%clk 0:03:02.2]}
4. g3 {[%clk 0:03:03.3]} 4... Be7 {[%clk 0:03:03.4]} 5. Bg2 {[%clk 0:03:04.9]}
5... O-O {[%clk 0:03:04.5]} 6. O-O {[%clk 0:03:06.1]} 6... dxc4 {[%clk
0:03:05.8]} 7. Qc2 {[%clk 0:03:06.4]} 7... b5 {[%clk 0:03:06.6]} 8. Ng5 {[%clk
0:02:58.9]} 8... c6 {[%clk 0:03:05.4]} 9. a4 {[%clk 0:02:51.5]} 9... h6 {[%clk
0:03:01]} 10. Nf3 {[%clk 0:02:45.9]} 10... Nd5 {[%clk 0:03:01.8]} 11. e4 {[%clk
0:02:44.6]} 11... Nb4 {[%clk 0:03:02.5]} 12. Qe2 {[%clk 0:02:44.1]} 12... Nd3
{[%clk 0:02:54.9]} 13. Be3 {[%clk 0:02:44.2]} 13... Na6 {[%clk 0:02:53.9]} 14.
Nc3 {[%clk 0:02:35.8]} 14... b4 {[%clk 0:02:46.8]} 15. Na2 {[%clk 0:02:35.9]}
15... b3 {[%clk 0:02:43.5]} 16. Nc1 {[%clk 0:02:26.4]} 16... Nab4 {[%clk
0:02:41.7]} 17. Nxd3 {[%clk 0:02:23.4]} 17... Nxd3 {[%clk 0:02:27.8]} 18. Ne1
{[%clk 0:02:22.6]} 18... Nb4 {[%clk 0:02:21.3]} 19. Nf3 {[%clk 0:02:09.8]} 19...
Ba6 {[%clk 0:02:21.5]} 20. Qd2 {[%clk 0:01:59.1]} 20... Nc2 {[%clk 0:02:13.4]}
21. Rab1 {[%clk 0:01:52.4]} 21... Bb4 {[%clk 0:02:13.3]} 22. Qc1 {[%clk
0:01:48.3]} 22... c3 {[%clk 0:01:41.3]} 23. bxc3 {[%clk 0:01:43]} 23... Ba3
{[%clk 0:01:39]} 24. Qd2 {[%clk 0:01:36.6]} 24... Bxf1 {[%clk 0:01:39.8]} 25.
Bxf1 {[%clk 0:01:38.5]} 25... Nxe3 {[%clk 0:01:34.3]} 26. Qxe3 {[%clk
0:01:37.8]} 26... Rb8 {[%clk 0:01:32.4]} 27. Bc4 {[%clk 0:01:36.4]} 27... b2
{[%clk 0:01:32.5]} 28. Ne5 {[%clk 0:01:33.7]} 28... Qc7 {[%clk 0:01:27.9]} 29.
Bd3 {[%clk 0:01:21.5]} 29... c5 {[%clk 0:01:25.3]} 30. Nc4 {[%clk 0:01:17.5]}
30... cxd4 {[%clk 0:01:26.2]} 31. cxd4 {[%clk 0:01:19.4]} 31... Rb3 {[%clk
0:01:22.5]} 32. e5 {[%clk 0:01:13.7]} 32... Rc8 {[%clk 0:01:14.3]} 33. Nxa3
{[%clk 0:00:57.9]} 33... Qc1+ {[%clk 0:01:12.1]} 34. Kg2 {[%clk 0:00:55.4]}
34... Rxa3 {[%clk 0:01:06.6]} 35. Qe4 {[%clk 0:00:53.2]} 35... g6 {[%clk
0:01:03.6]} 36. h4 {[%clk 0:00:53.8]} 36... Rcc3 {[%clk 0:00:49.7]} 37. Qa8+
{[%clk 0:00:48.4]} 37... Kg7 {[%clk 0:00:49.7]} 38. Qd8 {[%clk 0:00:49.5]} 38...
Rxd3 {[%clk 0:00:50.6]} 39. Qf6+ {[%clk 0:00:50.5]} 39... Kg8 {[%clk 0:00:52]}
40. Qd8+ {[%clk 0:00:50.7]} 40... Kh7 {[%clk 0:00:53.3]} 0-1

[Event "*** Titled Tuesday Blitz"]
[Site "Chess.com"]
[Date "2019.01.01"]
[Round "3"]
[White "Vrolijk"]
[Black "nurgyulsalimova"]
[Result "1/2-1/2"]
[WhiteElo "2716"]
[BlackElo "2467"]
[TimeControl "180+2"]
[EndTime "13:36:43 PST"]
[Termination "Game drawn by repetition"]

1. d4 {[%clk 0:02:54.4]} 1... Nf6 {[%clk 0:02:59.9]} 2. c4 {[%clk 0:02:54.6]}
2... e6 {[%clk 0:03:00.9]} 3. g3 {[%clk 0:02:55.6]} 3... d5 {[%clk 0:03:01.4]}
4. Bg2 {[%clk 0:02:56.3]} 4... Be7 {[%clk 0:03:01.6]} 5. Nf3 {[%clk 0:02:57.5]}
5... O-O {[%clk 0:03:02.2]} 6. O-O {[%clk 0:02:58.7]} 6... dxc4 {[%clk
0:03:03.4]} 7. Qc2 {[%clk 0:02:59.3]} 7... b6 {[%clk 0:03:04.4]} 8. Bg5 {[%clk
0:02:57]} 8... Nd5 {[%clk 0:03:02.6]} 9. Bxe7 {[%clk 0:02:56.8]} 9... Qxe7
{[%clk 0:03:04.5]} 10. Nbd2 {[%clk 0:02:58.1]} 10... Bb7 {[%clk 0:02:56.9]} 11.
Nxc4 {[%clk 0:02:58.7]} 11... c5 {[%clk 0:02:56.3]} 12. dxc5 {[%clk 0:02:52.4]}
12... Qxc5 {[%clk 0:02:54.5]} 13. Rac1 {[%clk 0:02:51.5]} 13... Nd7 {[%clk
0:02:33.6]} 14. Nce5 {[%clk 0:02:41.8]} 14... Nxe5 {[%clk 0:02:17.8]} 15. Nxe5
{[%clk 0:02:43.7]} 15... Qd6 {[%clk 0:01:46.3]} 16. Nd3 {[%clk 0:02:35.1]} 16...
Rac8 {[%clk 0:01:46.6]} 17. Qa4 {[%clk 0:02:35.5]} 17... Qb8 {[%clk 0:01:38.9]}
18. a3 {[%clk 0:02:33]} 18... h6 {[%clk 0:01:31]} 19. Rfd1 {[%clk 0:02:30.2]}
19... a6 {[%clk 0:01:30.3]} 20. Qd4 {[%clk 0:02:25.5]} 20... Rfd8 {[%clk
0:00:50.8]} 21. Ne5 {[%clk 0:02:22]} 21... Nc3 {[%clk 0:00:36.9]} 22. bxc3
{[%clk 0:02:05.9]} 22... Rxd4 {[%clk 0:00:37.3]} 23. cxd4 {[%clk 0:02:07.8]}
23... Bxg2 {[%clk 0:00:37.2]} 24. Kxg2 {[%clk 0:02:07.7]} 24... Qb7+ {[%clk
0:00:37.6]} 25. f3 {[%clk 0:02:06]} 25... Rxc1 {[%clk 0:00:38]} 26. Rxc1 {[%clk
0:02:07.9]} 26... f6 {[%clk 0:00:39.3]} 27. Nc6 {[%clk 0:02:08]} 27... Qd7
{[%clk 0:00:36.5]} 28. e4 {[%clk 0:02:06]} 28... Qd6 {[%clk 0:00:37.2]} 29. Rc3
{[%clk 0:02:06.2]} 29... Kh7 {[%clk 0:00:33]} 30. Kf2 {[%clk 0:02:03.7]} 30...
b5 {[%clk 0:00:33.8]} 31. Ke3 {[%clk 0:02:04.3]} 31... h5 {[%clk 0:00:30.9]} 32.
Nb4 {[%clk 0:01:53.6]} 32... a5 {[%clk 0:00:23.3]} 33. Nd3 {[%clk 0:01:54.4]}
33... h4 {[%clk 0:00:23.9]} 34. f4 {[%clk 0:01:51.2]} 34... hxg3 {[%clk
0:00:24.7]} 35. hxg3 {[%clk 0:01:53.1]} 35... f5 {[%clk 0:00:23.2]} 36. Rc5
{[%clk 0:01:51]} 36... fxe4 {[%clk 0:00:21.4]} 37. Kxe4 {[%clk 0:01:52.9]} 37...
Qd7 {[%clk 0:00:19.2]} 38. Ke3 {[%clk 0:01:53.3]} 38... Qb7 {[%clk 0:00:19]} 39.
g4 {[%clk 0:01:49.3]} 39... b4 {[%clk 0:00:20]} 40. axb4 {[%clk 0:01:49.4]}
40... axb4 {[%clk 0:00:21.9]} 41. Rc2 {[%clk 0:01:50.7]} 41... Qh1 {[%clk
0:00:14.7]} 42. g5 {[%clk 0:01:45.1]} 42... Qg1+ {[%clk 0:00:15.3]} 43. Ke4
{[%clk 0:01:44.3]} 43... b3 {[%clk 0:00:14.4]} 44. Rb2 {[%clk 0:01:45.2]} 44...
Qh1+ {[%clk 0:00:14]} 45. Ke3 {[%clk 0:01:46.6]} 45... Qd1 {[%clk 0:00:14.3]}
46. Rd2 {[%clk 0:01:42.7]} 46... Qg1+ {[%clk 0:00:13.7]} 47. Ke4 {[%clk
0:01:44]} 47... Qf1 {[%clk 0:00:11.5]} 48. Rb2 {[%clk 0:01:44.7]} 48... Qh1+
{[%clk 0:00:11.6]} 49. Ke3 {[%clk 0:01:45.2]} 49... Qg1+ {[%clk 0:00:12.5]} 50.
Ke4 {[%clk 0:01:45.5]} 50... Qh1+ {[%clk 0:00:13.4]} 51. Ke3 {[%clk 0:01:46.7]}
51... Qg1+ {[%clk 0:00:14.3]} 52. Ke4 {[%clk 0:01:48.3]} 52... Qh1+ {[%clk
0:00:12.5]} 53. Ke3 {[%clk 0:01:49.5]} 1/2-1/2

[Event "*** Titled Tuesday Blitz"]
[Site "Chess.com"]
[Date "2019.01.01"]
[Round "3"]
[White "MasterKroket"]
[Black "snowlord"]
[Result "0-1"]
[WhiteElo "2449"]
[BlackElo "2692"]
[TimeControl "180+2"]
[EndTime "13:36:44 PST"]
[Termination "snowlord won on time"]

1. d4 {[%clk 0:03:01.9]} 1... Nf6 {[%clk 0:02:58.5]} 2. c4 {[%clk 0:03:02.4]}
2... e6 {[%clk 0:03:00.3]} 3. Nf3 {[%clk 0:03:02.9]} 3... Bb4+ {[%clk
0:03:01.6]} 4. Bd2 {[%clk 0:03:03.6]} 4... Qe7 {[%clk 0:03:02.1]} 5. g3 {[%clk
0:02:57.1]} 5... Nc6 {[%clk 0:03:03.3]} 6. Bg2 {[%clk 0:02:57.7]} 6... Bxd2+
{[%clk 0:03:03.6]} 7. Qxd2 {[%clk 0:02:55.8]} 7... Ne4 {[%clk 0:03:03.6]} 8. Qc2
{[%clk 0:02:51.9]} 8... Qb4+ {[%clk 0:03:04.7]} 9. Nbd2 {[%clk 0:02:47.9]} 9...
Nxd2 {[%clk 0:03:05.4]} 10. Qxd2 {[%clk 0:02:42.8]} 10... Qxc4 {[%clk
0:03:06.5]} 11. O-O {[%clk 0:02:42]} 11... O-O {[%clk 0:03:07.7]} 12. Rfc1
{[%clk 0:02:39.8]} 12... Qa6 {[%clk 0:03:08.4]} 13. b4 {[%clk 0:02:36.8]} 13...
Qa4 {[%clk 0:03:05.5]} 14. b5 {[%clk 0:02:29]} 14... Qxb5 {[%clk 0:03:04.1]} 15.
Rc5 {[%clk 0:02:30.5]} 15... Qa4 {[%clk 0:02:53.7]} 16. Rh5 {[%clk 0:02:27.3]}
16... d5 {[%clk 0:02:24]} 17. Qf4 {[%clk 0:01:54]} 17... Qb4 {[%clk 0:02:07.7]}
18. Qh4 {[%clk 0:01:45.9]} 18... h6 {[%clk 0:02:07.4]} 19. g4 {[%clk 0:01:38.2]}
19... f6 {[%clk 0:02:04.5]} 20. Rc1 {[%clk 0:01:22.3]} 20... Bd7 {[%clk
0:01:48]} 21. Rc5 {[%clk 0:01:20]} 21... Nxd4 {[%clk 0:01:48.7]} 22. Rxc7 {[%clk
0:01:01.5]} 22... Qb1+ {[%clk 0:01:31.3]} 23. Bf1 {[%clk 0:01:01.7]} 23... Nxe2+
{[%clk 0:01:12.4]} 24. Kg2 {[%clk 0:01:02.1]} 24... Nf4+ {[%clk 0:01:13.9]} 25.
Kg1 {[%clk 0:00:53]} 25... Nxh5 {[%clk 0:00:37.2]} 26. gxh5 {[%clk 0:00:37.2]}
26... Be8 {[%clk 0:00:30.9]} 27. Qg4 {[%clk 0:00:34.6]} 27... Bf7 {[%clk
0:00:28.9]} 28. Kg2 {[%clk 0:00:14]} 28... Qe4 {[%clk 0:00:29.3]} 29. Qg3 {[%clk
0:00:15.1]} 29... Rac8 {[%clk 0:00:29.2]} 30. Rxb7 {[%clk 0:00:13.1]} 30... a5
{[%clk 0:00:30.6]} 31. Bb5 {[%clk 0:00:10.5]} 31... Rc3 {[%clk 0:00:29.3]} 32.
Bd7 {[%clk 0:00:05.4]} 32... Kh8 {[%clk 0:00:22.1]} 33. h3 {[%clk 0:00:03.2]}
33... Bxh5 {[%clk 0:00:22.6]} 0-1

[Event "*** Titled Tuesday Blitz"]
[Site "Chess.com"]
[Date "2019.01.01"]
[Round "3"]
[White "gmjlh"]
[Black "ElenaPershina"]
[Result "1-0"]
[WhiteElo "2643"]
[BlackElo "1907"]
[TimeControl "180+2"]
[EndTime "13:36:46 PST"]
[Termination "gmjlh won by checkmate"]

1. g3 {[%clk 0:03:01.9]} 1... d5 {[%clk 0:03:00]} 2. Bg2 {[%clk 0:03:02.9]} 2...
c6 {[%clk 0:03:00.3]} 3. c4 {[%clk 0:03:03.7]} 3... dxc4 {[%clk 0:03:00.2]} 4.
Na3 {[%clk 0:03:04.8]} 4... Nf6 {[%clk 0:02:57.3]} 5. Nxc4 {[%clk 0:03:05.2]}
5... Bf5 {[%clk 0:02:58.1]} 6. b3 {[%clk 0:03:05.1]} 6... e6 {[%clk 0:02:58.1]}
7. Bb2 {[%clk 0:03:04.4]} 7... Be7 {[%clk 0:02:57.1]} 8. Nf3 {[%clk 0:03:05]}
8... O-O {[%clk 0:02:58]} 9. O-O {[%clk 0:03:05.6]} 9... Na6 {[%clk 0:02:57.9]}
10. d3 {[%clk 0:03:05.6]} 10... h6 {[%clk 0:02:49.8]} 11. a3 {[%clk 0:03:04.2]}
11... Rc8 {[%clk 0:02:48.7]} 12. b4 {[%clk 0:03:05]} 12... Nc7 {[%clk
0:02:46.5]} 13. Qb3 {[%clk 0:03:05.9]} 13... Nb5 {[%clk 0:02:43.9]} 14. Rac1
{[%clk 0:03:05.1]} 14... Bg4 {[%clk 0:02:23.6]} 15. e3 {[%clk 0:02:49.9]} 15...
Nd5 {[%clk 0:02:17.8]} 16. Nfe5 {[%clk 0:02:47.7]} 16... Be2 {[%clk 0:02:12.6]}
17. Rfe1 {[%clk 0:02:48]} 17... Bh5 {[%clk 0:02:13]} 18. g4 {[%clk 0:02:42.9]}
18... Bg6 {[%clk 0:02:10.9]} 19. Rcd1 {[%clk 0:02:20.6]} 19... Bf6 {[%clk
0:02:09.3]} 20. d4 {[%clk 0:02:13.5]} 20... Bh7 {[%clk 0:02:07.1]} 21. f4 {[%clk
0:01:54.5]} 21... Nd6 {[%clk 0:02:02.4]} 22. Nxd6 {[%clk 0:01:46.1]} 22... Qxd6
{[%clk 0:02:02.1]} 23. Rf1 {[%clk 0:01:46]} 23... Bh4 {[%clk 0:01:24.4]} 24. e4
{[%clk 0:01:43.1]} 24... Nb6 {[%clk 0:01:19.6]} 25. Qh3 {[%clk 0:01:40.9]} 25...
Bf6 {[%clk 0:01:14.8]} 26. Qg3 {[%clk 0:01:41.6]} 26... Bxe5 {[%clk 0:01:07.8]}
27. dxe5 {[%clk 0:01:41.7]} 27... Qe7 {[%clk 0:01:08.9]} 28. Bd4 {[%clk
0:01:42.7]} 28... Nd7 {[%clk 0:01:07.8]} 29. f5 {[%clk 0:01:41.6]} 29... exf5
{[%clk 0:01:07]} 30. exf5 {[%clk 0:01:42.4]} 30... c5 {[%clk 0:01:06.9]} 31.
bxc5 {[%clk 0:01:43.9]} 31... Nxc5 {[%clk 0:01:07.4]} 32. f6 {[%clk 0:01:37]}
32... Qe6 {[%clk 0:01:05.1]} 33. fxg7 {[%clk 0:01:37.1]} 33... Rfd8 {[%clk
0:01:04.4]} 34. Qe3 {[%clk 0:01:26.1]} 34... b6 {[%clk 0:00:51.7]} 35. h3 {[%clk
0:00:43.7]} 35... Kxg7 {[%clk 0:00:39.9]} 36. Rf6 {[%clk 0:00:41.6]} 36... Qb3
{[%clk 0:00:34.6]} 37. Qxh6+ {[%clk 0:00:33.7]} 37... Kh8 {[%clk 0:00:32.5]} 38.
Rdf1 {[%clk 0:00:23.7]} 38... Rxd4 {[%clk 0:00:31.1]} 39. Rxf7 {[%clk
0:00:24.6]} 39... Qc2 {[%clk 0:00:26.9]} 40. Qg7# {[%clk 0:00:24.7]} 1-0

[Event "*** Titled Tuesday Blitz"]
[Site "Chess.com"]
[Date "2019.01.01"]
[Round "3"]
[White "Kazakov_Konstantin"]
[Black "StephenDedalus83"]
[Result "0-1"]
[WhiteElo "2559"]
[BlackElo "2727"]
[TimeControl "180+2"]
[EndTime "13:36:49 PST"]
[Termination "StephenDedalus83 won by resignation"]

1. e4 {[%clk 0:03:01.9]} 1... c5 {[%clk 0:02:59.8]} 2. Nf3 {[%clk 0:03:02.3]}
2... d6 {[%clk 0:03:00.2]} 3. d4 {[%clk 0:03:02.8]} 3... cxd4 {[%clk 0:03:00.8]}
4. Qxd4 {[%clk 0:03:04.3]} 4... Nf6 {[%clk 0:03:02.4]} 5. Bb5+ {[%clk 0:03:03]}
5... Bd7 {[%clk 0:02:56.7]} 6. Bxd7+ {[%clk 0:03:01]} 6... Qxd7 {[%clk
0:02:57.7]} 7. O-O {[%clk 0:02:54.2]} 7... Nc6 {[%clk 0:02:57.9]} 8. Qd3 {[%clk
0:02:54.6]} 8... g6 {[%clk 0:02:58.4]} 9. Nc3 {[%clk 0:02:54.2]} 9... Bg7 {[%clk
0:02:59.1]} 10. Bg5 {[%clk 0:02:52]} 10... O-O {[%clk 0:02:54.4]} 11. Rfe1
{[%clk 0:02:33.4]} 11... Ng4 {[%clk 0:02:39.3]} 12. Rad1 {[%clk 0:02:29.3]}
12... Rac8 {[%clk 0:02:37.3]} 13. h3 {[%clk 0:02:13.3]} 13... Nge5 {[%clk
0:02:37.3]} 14. Nxe5 {[%clk 0:02:08.3]} 14... Nxe5 {[%clk 0:02:38.1]} 15. Qg3
{[%clk 0:02:00.8]} 15... h6 {[%clk 0:02:23.8]} 16. Bc1 {[%clk 0:01:57.5]} 16...
Qc6 {[%clk 0:01:58.9]} 17. Nd5 {[%clk 0:01:47.8]} 17... Rfe8 {[%clk 0:01:59.2]}
18. c3 {[%clk 0:01:47.8]} 18... Nc4 {[%clk 0:01:45]} 19. Qh4 {[%clk 0:01:45.8]}
19... g5 {[%clk 0:01:45.3]} 20. Qh5 {[%clk 0:01:41.9]} 20... e6 {[%clk 0:01:38]}
21. Nb4 {[%clk 0:01:38.3]} 21... Qc5 {[%clk 0:01:34.8]} 22. Nd3 {[%clk
0:01:36.5]} 22... Qb6 {[%clk 0:01:31]} 23. h4 {[%clk 0:01:32.7]} 23... f6 {[%clk
0:01:28.6]} 24. hxg5 {[%clk 0:01:27.8]} 24... hxg5 {[%clk 0:01:29.1]} 25. b3
{[%clk 0:01:27.2]} 25... Na5 {[%clk 0:01:29.5]} 26. c4 {[%clk 0:01:27.8]} 26...
Qc7 {[%clk 0:01:28.7]} 27. Re3 {[%clk 0:01:26.8]} 27... Qf7 {[%clk 0:01:29.2]}
28. Qe2 {[%clk 0:01:18.4]} 28... Nc6 {[%clk 0:01:29]} 29. Bb2 {[%clk 0:01:17.7]}
29... Rcd8 {[%clk 0:01:15.3]} 30. Re1 {[%clk 0:01:15.9]} 30... Bh6 {[%clk
0:01:13.2]} 31. Rh3 {[%clk 0:01:08.6]} 31... Qg6 {[%clk 0:01:12.1]} 32. Qg4
{[%clk 0:00:58.7]} 32... Kf7 {[%clk 0:01:07.5]} 33. Rf3 {[%clk 0:00:53]} 33...
Bg7 {[%clk 0:01:03.2]} 34. b4 {[%clk 0:00:53.1]} 34... Rh8 {[%clk 0:00:58.6]}
35. b5 {[%clk 0:00:49.7]} 35... Rh4 {[%clk 0:00:59.2]} 36. Qxh4 {[%clk
0:00:37.4]} 36... gxh4 {[%clk 0:00:59.3]} 37. bxc6 {[%clk 0:00:39.3]} 37... bxc6
{[%clk 0:01:00.3]} 38. e5 {[%clk 0:00:40.1]} 38... f5 {[%clk 0:01:01.4]} 39. Bc3
{[%clk 0:00:31.9]} 39... d5 {[%clk 0:01:01.6]} 40. c5 {[%clk 0:00:24.6]} 40...
Rb8 {[%clk 0:01:01.6]} 41. Bd4 {[%clk 0:00:22.3]} 41... Bh6 {[%clk 0:01:02]} 42.
Nf4 {[%clk 0:00:18]} 42... Qg4 {[%clk 0:00:59.5]} 43. Ne2 {[%clk 0:00:18.9]}
43... Rb4 {[%clk 0:00:56.6]} 44. Rd1 {[%clk 0:00:19.5]} 44... Qe4 {[%clk
0:00:56.3]} 45. Kf1 {[%clk 0:00:19]} 45... Rb1 {[%clk 0:00:56.3]} 0-1